Cogmind - Beta 10.2 @@@ ROGUE MODE // 2021.05.08 @ 22:02:00 Player: sasha Result: Destroyed by D-53 Grenadier with Mini Grenade Launcher Performance ------------- Evolutions (0) 0 Regions Visited (2) 400 Robots Destroyed (15) 75 Value Destroyed (316) 316 Prototype IDs (2) 40 Alien Tech Used (0) 0 Bonus (0) 0 TOTAL SCORE: 831 Bonus ------- None Cogmind --------- Core Integrity 0/250 Matter 187/300 Energy 99/100 System Corruption 4% Temperature Cool (0) Movement Core (100) Ox1 Location -10/Mines Parts ------- > --- POWER (1) -------- (None) > --- PROPULSION (2) --- (None) > --- UTILITY (2) ------ Small Storage Unit > --- WEAPON (2) ------- Katana > --- INVENTORY (6) ---- Advanced Weight Redist. System Peak State ------------ > --- POWER ------------ Light Deuterium Engine > --- PROPULSION ------- Light Treads Light Treads > --- UTILITY ---------- Improved Heat Sink Small Storage Unit > --- WEAPON ----------- Improved Grenade Launcher Katana > --- INVENTORY -------- Advanced Weight Redist. System [Rating: 15] Favorites ----------- Power Light Nuclear Core Engine Ion Engine Power Core Light Nuclear Core Propulsion Light Treads Treads Light Treads Leg Aluminum Leg Wheel Wheel Utility Small Storage Unit Device Improved Heat Sink Storage Small Storage Unit Processor Melee Analysis Suite Weapon Light Assault Rifle Energy Gun Small Laser Ballistic Gun Light Assault Rifle Launcher Improved Grenade Launcher Special Weapon Mining Laser Slashing Weapon Katana Build | -11 -10 -10 ------- Run | Scr Mat Min Slots Evolved . | . . . Power . | . . . Propulsion . | . . . Utility . | . . . Weapon . | . . . Parts Attached 23 | 10 . 13 Power 3 | 1 . 2 Engine 2 | 1 . 1 Core 1 | . . 1 Reactor . | . . . Propulsion 9 | 5 . 4 Treads 4 | 2 . 2 Leg 3 | 1 . 2 Wheel 2 | 2 . . Hover . | . . . Flight . | . . . Utility 5 | 2 . 3 Device 2 | . . 2 Storage 2 | 2 . . Processor 1 | . . 1 Hackware . | . . . Protection . | . . . Artifact . | . . . Weapon 6 | 2 . 4 Energy Gun 1 | . . 1 Energy Cannon . | . . . Ballistic Gun 2 | 2 . . Ballistic Cannon . | . . . Launcher 1 | . . 1 Special Weapon 1 | . . 1 Impact Weapon . | . . . Slashing Weapon 1 | . . 1 Piercing Weapon . | . . . Special Melee Weapon . | . . . Unidentified Prototypes . | . . . Parts Lost 11 | . . 11 Power 2 | . . 2 Propulsion 3 | . . 3 Utility 2 | . . 2 Weapon 4 | . . 4 Highest Loss Streak 8 | . . 8 Average Slot Usage (%) 95 | . 100 95 Engine 5 | . 14 3 Core 8 | . . 9 Treads 19 | . 28 17 Leg 5 | . . 6 Storage 18 | . 28 17 Processor 8 | . . 9 Energy Gun 5 | . . 6 Ballistic Gun 11 | . 28 7 Special Weapon 1 | . . 1 Slashing Weapon 9 | . . 11 Naked Turns . | . . . Heaviest Build 16 | 15 15 16 Greatest Support 40 | 20 20 40 Greatest Overweight (x) 3 | . . 3 Average Overweight (x) . | . . . Largest Inventory Capacity 8 | 8 8 8 Average Capacity 6 | 6 8 6 Most Carried 8 | 7 8 8 Average Carried 5 | 3 7 5 Final Capacity 8 | 8 8 6 Final Carried 7 | 7 7 1 Class Distribution -------------------- 100% | Mutant Dominant Class ---------------- Mutant | -10/Materials Mutant | -10/Mines Resources | -11 -10 -10 ----------- Run | Scr Mat Min Matter Collected 628 | 418 66 144 Remotely . | . . . Salvage Created 521 | 165 66 290 Parts 35 | 15 4 16 Haulers Intercepted . | . . . Recyclers Shooed 1 | 1 . . Parts Field Recycled . | . . . Retrieved Matter . | . . . Parts Self-Destructed . | . . . Prevented . | . . . Kills | -11 -10 -10 ------- Run | Scr Mat Min Combat Hostiles Destroyed 29 | . 2 27 Melee 4 | . . 4 Guns 7 | . 2 5 Cannons 2 | . . 2 AOE 16 | . . 16 Classes Destroyed 6 | 3 1 2 Worker 2 | 2 . . Tunneler 2 | 2 . . Recycler 1 | 1 . . Swarmer 3 | . . 3 Grunt 7 | . 2 5 Assembled 19 | . . 19 Best Kill Streak 19 | 3 2 19 Combat Bots Only 19 | . 2 19 Max Kills in Single Turn 4 | 1 1 4 Gunslinging . | . . . Exploded 4 | . . 4 Melee 1 | . . 1 Uniques/NPCs Destroyed . | . . . Combat | -11 -10 -10 -------- Run | Scr Mat Min Damage Taken 1305 | . 119 1186 Core 260 | . 11 249 Absorbed by Shields . | . . . Core Remaining (%) 100 | 100 . . Volleys Fired 77 | 14 13 50 Largest 2 | 2 2 2 Hottest 120 | 40 40 120 Shots Fired 123 | 28 26 69 Gun 109 | 28 26 55 Cannon . | . . . Launcher 9 | . . 9 Special 5 | . . 5 Kinetic 97 | 28 26 43 Thermal 17 | . . 17 Explosive 9 | . . 9 Electromagnetic . | . . . Robot Hit Streak 15 | 14 9 15 Robot Miss Streak 3 | 1 1 3 Penetration Max . | . . . Secondary Targets 1 | . . 1 Max Gunslinging Chain 1 | . . 1 Shots Hit Robots 96 | 20 18 58 Core Hits 69 | 11 6 52 Critical Hits 1 | 1 . . Critical Kills . | . . . Critical Parts Destroyed 1 | 1 . . Melee Attacks 13 | . . 13 Impact . | . . . Slashing 13 | . . 13 Piercing . | . . . Sneak Attacks . | . . . Combat Hostiles . | . . . Follow-up Attacks . | . . . Damage Inflicted 2136 | 156 142 1838 Guns 659 | 156 142 361 Cannons . | . . . Explosions 1053 | . . 1053 Melee 328 | . . 328 Ramming . | . . . Kinetic 570 | 156 142 272 Thermal 185 | . . 185 Explosive 1053 | . . 1053 Electromagnetic . | . . . Impact . | . . . Slashing 328 | . . 328 Piercing . | . . . Highest Corruption 4 | . . 4 Average Corruption 3 | . . 3 Corruption Purged . | . . . Effects 3 | . . 3 Matter Fused 1 | . . 1 Energy Discharges 1 | . . 1 Targeting Errors 1 | . . 1 Overload Shots . | . . . Overflow Damage 103 | . . 103 Projectiles . | . . . Explosions 86 | . . 86 Melee 17 | . . 17 Knockbacks . | . . . Impact . | . . . Kinetic . | . . . Secondary . | . . . Self-Inflicted Damage 161 | . . 161 Shots 5 | . . 5 Rammed . | . . . Targets Rammed . | . . . Kicked . | . . . Crushed . | . . . Highest Temperature 187 | . 12 187 Average Temperature 38 | . 6 44 Received Heat Transfer 460 | . 66 394 Siege Activations . | . . . Robots Corrupted . | . . . Combat Hostiles . | . . . Parts Fried . | . . . Impact Corruptions . | . . . Robots Melted . | . . . Combat Hostiles . | . . . Parts Melted . | . . . Heat Transferred 400 | . . 400 Parts Sabotaged . | . . . Parts Stolen . | . . . Parts Stripped . | . . . Power Chain Reactions . | . . . Missiles Intercepted . | . . . Alert | -11 -10 -10 ------- Run | Scr Mat Min Peak Influence 151 | 25 96 151 Initial 16 | . 16 1 Average 27 | 10 29 29 Maximum Alert Level . | . . . Low Security (%) 100 | 100 100 100 Level 1 . | . . . Level 2 . | . . . Level 3 . | . . . Level 4 . | . . . Level 5 . | . . . High Security . | . . . Max Security . | . . . Squads Dispatched 2 | . 1 1 Investigation 1 | . . 1 Extermination . | . . . Reinforcement 1 | . 1 . Assault . | . . . Garrison . | . . . Intercept . | . . . Construction Impeded . | . . . Haulers Reinforced . | . . . Stealth | -11 -10 -10 --------- Run | Scr Mat Min Distress Signals . | . . . Communications Jammed . | . . . Distress Signals . | . . . Times Spotted 39 | . 5 34 Peak Tracking Total 8 | . 2 8 Tactical Retreats 3 | . . 3 Traps | -11 -10 -10 ------- Run | Scr Mat Min Traps Triggered . | . . . Indirectly . | . . . Trap Hack Attempts . | . . . Triggered . | . . . Disarmed . | . . . Reprogrammed . | . . . Reused . | . . . Traps Extracted . | . . . Installed . | . . . Triggered . | . . . Machines | -11 -10 -10 ---------- Run | Scr Mat Min Machines Disabled . | . . . Max in Single Turn . | . . . Machines Sabotaged . | . . . Garrisons Compromised . | . . . Overloaded Fab Kills . | . . . Fab Network Shutdowns . | . . . Hacking | -11 -10 -10 --------- Run | Scr Mat Min Machines Accessed 4 | . 3 1 Terminals 2 | . 2 . Fabricators . | . . . Repair Stations . | . . . Recycling Units 1 | . 1 . Scanalyzers . | . . . Garrison Access . | . . . Total Hacks 10 | . 9 1 Successful 7 | . 6 1 Failed 3 | . 3 . Catastrophic . | . . . Database Lockouts . | . . . Manual . | . . . Terminals 4 | . 4 . Fabricators . | . . . Repair Stations . | . . . Recycling Units 5 | . 5 . Scanalyzers . | . . . Garrison Access . | . . . Terminal Hacks 3 | . 2 1 Prototype ID Bank 1 | . 1 . Open Door 1 | . . 1 Unreport Threat 1 | . 1 . Fabricator Hacks . | . . . Repair Station Hacks . | . . . Recycling Unit Hacks 4 | . 4 . Recycle Component 2 | . 2 . Process 1 | . 1 . Retrieve Matter 1 | . 1 . Scanalyzer . | . . . Garrison Access Hacks . | . . . Unauthorized Hacks . | . . . Terminals . | . . . Fabricators . | . . . Repair Stations . | . . . Recycling Units . | . . . Scanalyzers . | . . . Garrison Access . | . . . Data Cores Recovered . | . . . Used . | . . . Hacking Detections 1 | . 1 . Full Trace Events 1 | . 1 . Feedback Events . | . . . Feedback Blocked . | . . . Robot Schematics Acquired . | . . . Robots Built . | . . . Matter . | . . . Time . | . . . Total Robot Build Rating . | . . . Part Schematics Acquired . | . . . Parts Built . | . . . Matter . | . . . Time . | . . . Total Part Build Rating . | . . . Parts Repaired . | . . . Time . | . . . Parts Recycled 2 | . 2 . Recycled Matter 19 | . 19 . Retrieved Matter . | . . . Retrieved Components . | . . . Parts Scanalyzed . | . . . Part Schematics Acquired . | . . . Parts Damaged . | . . . Bothacking | -11 -10 -10 ------------ Run | Scr Mat Min Used RIF Installer . | . . . Robots Hacked . | . . . Non-combat . | . . . Combat . | . . . Robot Hacks Applied . | . . . Relay Couplers Released . | . . . Robots Rewired . | . . . Allies Hacked . | . . . Hacks Repelled . | . . . Allies | -11 -10 -10 -------- Run | Scr Mat Min Total Allies . | . . . Largest Group . | . . . Highest-Rated Group . | . . . Highest-Rated Ally . | . . . Total Orders . | . . . Ally Attacks . | . . . Total Damage . | . . . Kills . | . . . Allies Corrupted . | . . . Allies Melted . | . . . Intel | -11 -10 -10 ------- Run | Scr Mat Min Robot Analysis Total . | . . . Derelict Logs Recovered 1 | . . 1 Drone Launches . | . . . Drone Recoveries . | . . . Exploration | -11 -10 -10 ------------- Run | Scr Mat Min Turns Passed 1663 | 174 238 1251 Spaces Moved 861 | 81 124 656 Core 26 | 16 . 10 Treads 634 | 61 124 449 Legs 201 | 4 . 197 Wheels . | . . . Hover . | . . . Flight . | . . . Fastest Speed 50 | 50 160 100 Average Speed 148 | 136 160 148 Slowest Speed 200 | 160 160 200 Overloaded Moves . | . . . Propulsion Burnouts . | . . . Robots Hopped . | . . . Cave-ins Triggered . | . . . Exploration Rate (%) 40 | 5 27 90 Regions Visited 2 Branch Regions 1 Pre-discovered Areas 1 | . . 1 Known Exits Taken . | . . . Unknown Exits Taken 2 | 1 1 . Scrap Searched 1 | . . 1 Spaces Dug . | . . . Terrain Destroyed 103 | . . 103 Melee . | . . . Projectile 1 | . . 1 AOE 102 | . . 102 Terrain Rammed . | . . . Walls Destroyed . | . . . Machines Disabled . | . . . Actions | -11 -10 -10 --------- Run | Scr Mat Min Total 1115 | 124 143 848 Wait 97 | . 5 92 Move 859 | 80 123 656 Hop . | . . . Pick Up 30 | 16 2 12 Fast Attach . | . . . Attach 16 | 9 . 7 Detach 2 | 2 . . Swap 7 | 1 . 6 Drop 14 | 2 . 12 Fire 77 | 14 13 50 Melee 13 | . . 13 Ram . | . . . Kick . | . . . Crush . | . . . Escape Stasis . | . . . Rewire . | . . . Trap . | . . . Miscellaneous . | . . . Route ------- -11/Scrapyard -10/Materials (discovered 2 exits: *Min x2) -10/Mines (discovered 2 exits: [*Mat x2]) History --------- Turn | Location | Event 12 | -11/Scrapyard | Discovered new exit (range 14) 175 | -11/Scrapyard | Entered Materials 309 | -10/Materials | Build established: Mutant 343 | -10/Materials | Discovered new exit (range 2) 351 | -10/Materials | Discovered new exit (range 16) 413 | -10/Materials | Entered Mines 655 | -10/Mines | Discovered new exit (range 10) 669 | -10/Mines | Met a Derelict shopkeep closing up shop 766 | -10/Mines | Discovered new exit (range 5) 1040 | -10/Mines | Core integrity fell below 50% 1070 | -10/Mines | Learned location of 1 exit from Materials 1223 | -10/Mines | Learned location of Storage (-7) 1583 | -10/Mines | Assembled infested the area 1637 | -10/Mines | Core integrity fell below 20% 1660 | -10/Mines | Destroyed 19 combat bots 1664 | -10/Mines | Destroyed by D-53 Grenadier with Mini Grenade Launcher Last Messages --------------- 01635_ as-89843 destroyed. [Achievement: Exterminator] 01635_ as-35922 destroyed. 01636_ The unstable cave ceiling collapses. 01637_ Destroyed Asb. Hover Unit. 01637_ as-66874 destroyed. 01639_ Destroyed Asb. Hover Unit. 01639_ as-00557 destroyed. 01639_ as-98814 destroyed. 01639_ Lgt. Treads destroyed. 01639_ Destroyed Lgt. Treads. 01639_ Lgt. Deuterium Engine destroyed. 01639_ Destroyed Lgt. Deuterium Engine. 01652_ The unstable cave ceiling collapses. 01658_ System corrupted: Matter fused (-7). 01658_ C-30 ARC bursts open, deploying its payload. 01658_ D-53 Grenadier unfolds itself. 01660_ The unstable cave ceiling collapses. 01662_ Imp. Grenade Launcher destroyed. 01664_ The unstable cave ceiling collapses. Map ----- +----------------------------------------------------+ | ???????????????????????????????# #?## # | | ???????????????????????????????# ### ## | | ???????????????????????????????# %% ##? | | ???????????????????????????????# ! [ ##?? | | ???????????????????????????????###########??? | | ????????????????????????????????????????????? | | ????????????????????????????????????????????? | | ????????????????????????????????????????????? | | ???????????????????????????????????????####?? | | ?????????????????????????????########### ##? | | ?????????????????????????????? #? | | ???????????????????????############### ## | | ????????????????????#### | | ???????????????????? % ########### # | | ???????????????????? ###??????# ## | | ???????????????????? ???????## ##? | | ???????????????????## ##???????### #?? | | ???????????????????? d #?????????# #?? | | ???????????????????? d ###????????# #?? | | ???????????????????? ##???????# #?? | | ???????????????????## #???????# #?? | | ??????????????????## #???????# #?? | | ?????????????????## #???????# #?? | | ?????????????????# ##???????# #?? | | ???????????????### # #???????# #?? | | ???????????????# @ # #???????# #?? | | ???????????????# # # ##???????# #?? | | ?????????????????# ##????????# #?? | | ?????????????????## ##?????????# #?? | | ??????????????????## ###??????????# #?? | | ???????????????????########????????????# ### | | ???????????????????????????????????????# | | ???????????????????????????????????????# | | ???????????????????????????????????????###### | | ????????????????????????????????????????????? | | ????????????????????????????????????????????? | | ????????????????????????????????????????????? | | | | | | | | | | | | | | | | | | | | | | | | | | | +----------------------------------------------------+ Best States ------------- Heat Dissipation 39 Energy Generation 14 Energy Capacity 250 Matter Stores 300 Matter Capacity 300 Sight Range 16 Terrain Scan Density 10 Evasion (%) 50 Melee Accuracy 5 Recoil Reduction 2 Item Schematics ----------------- None Robot Schematics ------------------ None Fabricated ------------ Nothing Alien Tech Used ----------------- None Achievements -------------- Exterminator Challenges ------------ None Game ------ Seed GravmagExplosiveBay Manual? 0 Play Time 00:55:38 Cumulative 29.9 hours Start 2021.05.02 @ 10:43:33 End 2021.05.08 @ 22:02:00 Sessions 3 Manual Loads 0 Difficulty Rogue Special Mode None Game No. 34 Rogue 34 Adventurer 0 Explorer 0 Win Type - Total 0 Types 0/0/0/0/0/0/0/0/0 Lore% 16 Gallery% 32 Achievement% 26 Wizard Run 0 Options --------- ASCII 0 Keyboard 0 Movement Mouse Keybinds 0 Fullscreen 2 Font 24/Smallcaps Map View 76x50 Tactical HUD 1 Map Filters NONE Filters NONE Steam 1 RUN: 05cd8e92-177c-4416-94d7-27c43a16468d